[Event "Early-Titled-Tuesday-Blitz-April-16-2024"]
[Site "Chess.com"]
[Date "2024.04.16"]
[Round "11"]
[White "RojonR"]
[Black "Smiechu"]
[Result "1-0"]
[WhiteElo "2552"]
[BlackElo "2384"]
[TimeControl "180+1"]
[EndTime "10:12:09 PDT"]
[Termination "RojonR won by resignation"]

1. e4 {[%clk 0:02:59.6]} 1... c5 {[%clk 0:02:59.6]} 2. Nf3 {[%clk 0:02:59.4]}
2... g6 {[%clk 0:02:59.8]} 3. d4 {[%clk 0:02:57.9]} 3... cxd4 {[%clk 0:03:00.4]}
4. Qxd4 {[%clk 0:02:58.4]} 4... Nf6 {[%clk 0:02:59.9]} 5. e5 {[%clk 0:02:56.3]}
5... Nc6 {[%clk 0:02:59.9]} 6. Qa4 {[%clk 0:02:54.7]} 6... Nd5 {[%clk
0:02:59.4]} 7. Qe4 {[%clk 0:02:55.2]} 7... Nb6 {[%clk 0:02:59.1]} 8. Nc3 {[%clk
0:02:52.6]} 8... d5 {[%clk 0:02:59]} 9. exd6 {[%clk 0:02:52.4]} 9... Bf5 {[%clk
0:02:58.9]} 10. Qe2 {[%clk 0:02:45.2]} 10... Bg7 {[%clk 0:02:54.7]} 11. dxe7
{[%clk 0:02:35.7]} 11... Nxe7 {[%clk 0:02:54.1]} 12. Bg5 {[%clk 0:02:35]} 12...
f6 {[%clk 0:02:49.4]} 13. Rd1 {[%clk 0:02:25.7]} 13... Qc7 {[%clk 0:02:44.3]}
14. Nb5 {[%clk 0:02:24.6]} 14... Qxc2 {[%clk 0:02:37]} 15. Nd6+ {[%clk
0:02:23.7]} 15... Kf8 {[%clk 0:02:35.8]} 16. Qxc2 {[%clk 0:02:00.8]} 16... Bxc2
{[%clk 0:02:35.2]} 17. Rc1 {[%clk 0:02:01]} 17... Ba4 {[%clk 0:02:18.9]} 18. Be3
{[%clk 0:01:46.6]} 18... f5 {[%clk 0:02:15.5]} 19. Nd4 {[%clk 0:01:42]} 19...
Be5 {[%clk 0:01:49]} 20. Ne6+ {[%clk 0:01:35.6]} 20... Kg8 {[%clk 0:01:49.1]}
21. Nc4 {[%clk 0:01:20.2]} 21... Nxc4 {[%clk 0:01:36.3]} 22. Bxc4 {[%clk
0:01:21.1]} 22... b5 {[%clk 0:01:36.4]} 23. Bb3 {[%clk 0:00:53.1]} 23... Bxb3
{[%clk 0:01:34.4]} 24. axb3 {[%clk 0:00:54]} 24... Kf7 {[%clk 0:01:34.5]} 25.
Ng5+ {[%clk 0:00:53.3]} 25... Kf6 {[%clk 0:01:32.8]} 26. f4 {[%clk 0:00:50]}
26... Bxb2 {[%clk 0:01:30.4]} 27. Rc2 {[%clk 0:00:49.8]} 27... Nd5 {[%clk
0:01:25.4]} 28. Rc6+ {[%clk 0:00:48.7]} 28... Kg7 {[%clk 0:01:19.7]} 29. Ne6+
{[%clk 0:00:40.5]} 29... Kf7 {[%clk 0:01:17.6]} 30. Ng5+ {[%clk 0:00:39.5]}
30... Ke8 {[%clk 0:01:13.1]} 31. Kf2 {[%clk 0:00:29.3]} 31... Kd7 {[%clk
0:01:09.7]} 32. Rc5 {[%clk 0:00:26.1]} 32... Nxe3 {[%clk 0:01:08.9]} 33. Kxe3
{[%clk 0:00:27]} 33... Rac8 {[%clk 0:01:08.7]} 34. Rd1+ {[%clk 0:00:26.2]} 34...
Ke7 {[%clk 0:01:07]} 35. Rxb5 {[%clk 0:00:25.1]} 35... Rc7 {[%clk 0:01:04.6]}
36. Kf2 {[%clk 0:00:15.3]} 36... Rd8 {[%clk 0:00:57.4]} 37. Rxd8 {[%clk
0:00:10.9]} 37... Rc2+ {[%clk 0:00:57.4]} 38. Kf3 {[%clk 0:00:10.2]} 38... Kxd8
{[%clk 0:00:57.7]} 39. Nxh7 {[%clk 0:00:09]} 39... Bd4 {[%clk 0:00:56.3]} 40.
Nf8 {[%clk 0:00:07.3]} 40... Rf2+ {[%clk 0:00:55.1]} 41. Kg3 {[%clk 0:00:07.6]}
41... Rd2 {[%clk 0:00:55.2]} 42. Ne6+ {[%clk 0:00:07.6]} 42... Kd7 {[%clk
0:00:54.8]} 43. Nxd4 {[%clk 0:00:07.6]} 43... Rxd4 {[%clk 0:00:54.5]} 44. Ra5
{[%clk 0:00:08.1]} 44... Rd3+ {[%clk 0:00:51.9]} 45. Kh4 {[%clk 0:00:08.7]}
45... Rxb3 {[%clk 0:00:51.9]} 46. Rxa7+ {[%clk 0:00:08.4]} 46... Ke6 {[%clk
0:00:52]} 47. Kg5 {[%clk 0:00:08.8]} 47... Rb2 {[%clk 0:00:51.6]} 48. g3 {[%clk
0:00:06.7]} 48... Rxh2 {[%clk 0:00:51.6]} 49. Kxg6 {[%clk 0:00:07]} 49... Rg2
{[%clk 0:00:50.9]} 50. Ra6+ {[%clk 0:00:07.3]} 50... Ke7 {[%clk 0:00:51.1]} 51.
Ra3 {[%clk 0:00:07.8]} 51... Ke6 {[%clk 0:00:50.6]} 52. Re3+ {[%clk 0:00:08.3]}
52... Kd7 {[%clk 0:00:47.8]} 53. Kxf5 {[%clk 0:00:08.9]} 53... Kd6 {[%clk
0:00:47.3]} 54. g4 {[%clk 0:00:09.5]} 54... Ra2 {[%clk 0:00:46.6]} 55. g5 {[%clk
0:00:09.8]} 55... Ra8 {[%clk 0:00:46.7]} 56. g6 {[%clk 0:00:09.7]} 56... Rf8+
{[%clk 0:00:47.3]} 57. Kg5 {[%clk 0:00:09.6]} 57... Rg8 {[%clk 0:00:47.1]} 58.
f5 {[%clk 0:00:09.9]} 1-0

[Event "Early-Titled-Tuesday-Blitz-April-16-2024"]
[Site "Chess.com"]
[Date "2024.04.16"]
[Round "11"]
[White "JJDAREK"]
[Black "SaiAgni_98"]
[Result "0-1"]
[WhiteElo "2322"]
[BlackElo "2482"]
[TimeControl "180+1"]
[EndTime "10:12:10 PDT"]
[Termination "SaiAgni_98 won on time"]

1. d4 {[%clk 0:03:00.9]} 1... d5 {[%clk 0:02:59.6]} 2. c4 {[%clk 0:02:58.1]}
2... c6 {[%clk 0:02:59.6]} 3. Nf3 {[%clk 0:02:56.4]} 3... Nf6 {[%clk 0:02:59.4]}
4. e3 {[%clk 0:02:56.1]} 4... Bf5 {[%clk 0:02:59.1]} 5. Nc3 {[%clk 0:02:54.7]}
5... e6 {[%clk 0:02:59.3]} 6. Nh4 {[%clk 0:02:54.9]} 6... Be4 {[%clk 0:02:59.5]}
7. f3 {[%clk 0:02:54.7]} 7... Bg6 {[%clk 0:02:59.9]} 8. Qb3 {[%clk 0:02:50.2]}
8... Qc7 {[%clk 0:02:50.4]} 9. Nxg6 {[%clk 0:02:48.4]} 9... hxg6 {[%clk
0:02:51.3]} 10. Bd2 {[%clk 0:02:46.4]} 10... a5 {[%clk 0:02:40.6]} 11. cxd5
{[%clk 0:02:39]} 11... Nxd5 {[%clk 0:02:40.5]} 12. Nxd5 {[%clk 0:02:25]} 12...
exd5 {[%clk 0:02:36.5]} 13. O-O-O {[%clk 0:01:57.1]} 13... a4 {[%clk 0:02:34.2]}
14. Qc2 {[%clk 0:01:55.7]} 14... a3 {[%clk 0:02:24.8]} 15. b3 {[%clk 0:01:54.3]}
15... Be7 {[%clk 0:01:50.9]} 16. e4 {[%clk 0:01:44.9]} 16... dxe4 {[%clk
0:01:50.6]} 17. fxe4 {[%clk 0:01:44.6]} 17... Rxh2 {[%clk 0:01:32.9]} 18. Rxh2
{[%clk 0:01:43]} 18... Qxh2 {[%clk 0:01:33.8]} 19. d5 {[%clk 0:01:34.9]} 19...
Bf6 {[%clk 0:01:12.8]} 20. Bc3 {[%clk 0:01:12.2]} 20... Nd7 {[%clk 0:00:33.4]}
21. dxc6 {[%clk 0:01:02.8]} 21... bxc6 {[%clk 0:00:32.5]} 22. Bc4 {[%clk
0:00:53]} 22... Bxc3 {[%clk 0:00:17.1]} 23. Qxc3 {[%clk 0:00:51.9]} 23... Ne5
{[%clk 0:00:17.8]} 24. Rd2 {[%clk 0:00:11.9]} 24... Nxc4 {[%clk 0:00:16.9]} 25.
Qxc4 {[%clk 0:00:09.9]} 25... Rc8 {[%clk 0:00:10.2]} 26. Kc2 {[%clk 0:00:10.1]}
26... Qe5 {[%clk 0:00:08.4]} 27. Qd3 {[%clk 0:00:08.9]} 27... Qb2+ {[%clk
0:00:07.7]} 28. Kd1 {[%clk 0:00:09.4]} 28... Qa1+ {[%clk 0:00:06.3]} 29. Ke2
{[%clk 0:00:09.8]} 29... Kf8 {[%clk 0:00:06.1]} 30. Qh3 {[%clk 0:00:07.1]} 30...
Re8 {[%clk 0:00:04.6]} 31. Qh8+ {[%clk 0:00:04.4]} 31... Ke7 {[%clk 0:00:05]}
32. Qh4+ {[%clk 0:00:04.7]} 32... Qf6 {[%clk 0:00:04.9]} 33. Qg4 {[%clk
0:00:03.7]} 33... Rd8 {[%clk 0:00:03.9]} 34. Rxd8 {[%clk 0:00:03.3]} 34... Kxd8
{[%clk 0:00:04.8]} 35. Qh3 {[%clk 0:00:01.1]} 35... Qb2+ {[%clk 0:00:04.9]} 36.
Kd3 {[%clk 0:00:01.3]} 36... Qb1+ {[%clk 0:00:04.8]} 37. Kc4 {[%clk 0:00:01.4]}
37... Qxa2 {[%clk 0:00:04.6]} 0-1

[Event "Early-Titled-Tuesday-Blitz-April-16-2024"]
[Site "Chess.com"]
[Date "2024.04.16"]
[Round "11"]
[White "Gryffindorac8"]
[Black "Vse_po_kaify"]
[Result "0-1"]
[WhiteElo "2439"]
[BlackElo "2587"]
[TimeControl "180+1"]
[EndTime "10:12:12 PDT"]
[Termination "Vse_po_kaify won by resignation"]

1. d4 {[%clk 0:03:00.9]} 1... Nf6 {[%clk 0:02:59.5]} 2. c4 {[%clk 0:03:00.9]}
2... e6 {[%clk 0:03:00.2]} 3. Nf3 {[%clk 0:03:00.8]} 3... Bb4+ {[%clk
0:03:00.5]} 4. Bd2 {[%clk 0:03:00.3]} 4... Qe7 {[%clk 0:03:00.4]} 5. g3 {[%clk
0:02:59.5]} 5... Nc6 {[%clk 0:03:00.3]} 6. Nc3 {[%clk 0:02:59.8]} 6... O-O
{[%clk 0:02:57.9]} 7. Bg2 {[%clk 0:02:59.8]} 7... a5 {[%clk 0:02:58.5]} 8. O-O
{[%clk 0:02:58.4]} 8... d6 {[%clk 0:02:58.8]} 9. Qc2 {[%clk 0:02:54]} 9... Bxc3
{[%clk 0:02:56.8]} 10. Bxc3 {[%clk 0:02:54.9]} 10... e5 {[%clk 0:02:57.5]} 11.
e4 {[%clk 0:02:51.5]} 11... Bg4 {[%clk 0:02:56]} 12. d5 {[%clk 0:02:48.5]} 12...
Bxf3 {[%clk 0:02:55.8]} 13. Bxf3 {[%clk 0:02:49.4]} 13... Nb8 {[%clk 0:02:15.4]}
14. Bg2 {[%clk 0:02:46.7]} 14... Nbd7 {[%clk 0:02:15]} 15. b3 {[%clk 0:02:36.5]}
15... Nc5 {[%clk 0:02:14.7]} 16. a3 {[%clk 0:02:26.2]} 16... a4 {[%clk
0:02:10.7]} 17. b4 {[%clk 0:02:24.9]} 17... Nb3 {[%clk 0:02:09.5]} 18. Rad1
{[%clk 0:02:24.8]} 18... c5 {[%clk 0:02:08.1]} 19. dxc6 {[%clk 0:02:10.3]} 19...
bxc6 {[%clk 0:02:08.3]} 20. Rd3 {[%clk 0:02:05.3]} 20... c5 {[%clk 0:01:54.5]}
21. b5 {[%clk 0:01:53.9]} 21... Nd7 {[%clk 0:01:39.7]} 22. Bh3 {[%clk
0:01:47.1]} 22... Nb6 {[%clk 0:01:37.4]} 23. Bb2 {[%clk 0:01:43]} 23... Ra7
{[%clk 0:01:35.5]} 24. Bg2 {[%clk 0:01:37.8]} 24... Rc7 {[%clk 0:01:22.3]} 25.
Re1 {[%clk 0:01:27.5]} 25... Nd4 {[%clk 0:01:20.2]} 26. Qc3 {[%clk 0:01:26.8]}
26... Qe6 {[%clk 0:01:15]} 27. Bf1 {[%clk 0:01:21.6]} 27... Nxc4 {[%clk
0:01:06.5]} 28. Rdd1 {[%clk 0:01:08.9]} 28... Nxb2 {[%clk 0:01:05.4]} 29. Qxb2
{[%clk 0:01:08.3]} 29... Nf3+ {[%clk 0:01:05.1]} 30. Kg2 {[%clk 0:01:06]} 30...
Nxe1+ {[%clk 0:01:03.8]} 31. Rxe1 {[%clk 0:01:06.9]} 31... Qb3 {[%clk
0:01:03.1]} 32. Qc1 {[%clk 0:01:02.8]} 32... c4 {[%clk 0:01:02.3]} 33. Rd1
{[%clk 0:00:58.4]} 33... Qxb5 {[%clk 0:01:00.4]} 34. Rxd6 {[%clk 0:00:57.1]}
34... Qb3 {[%clk 0:01:00.4]} 35. Rd5 {[%clk 0:00:55.6]} 35... c3 {[%clk
0:00:55.2]} 36. Rb5 {[%clk 0:00:53.1]} 36... Qe6 {[%clk 0:00:52.9]} 37. Qc2
{[%clk 0:00:49.7]} 37... h6 {[%clk 0:00:50.5]} 38. Rb4 {[%clk 0:00:46.8]} 38...
Rd8 {[%clk 0:00:47.6]} 39. Rxa4 {[%clk 0:00:43.6]} 39... Rd2 {[%clk 0:00:40.8]}
40. Qc1 {[%clk 0:00:43.2]} 40... Qb6 {[%clk 0:00:38.2]} 41. Qe1 {[%clk 0:00:37]}
41... c2 {[%clk 0:00:33]} 42. Ra8+ {[%clk 0:00:35.4]} 42... Kh7 {[%clk 0:00:32]}
43. Qxd2 {[%clk 0:00:34.3]} 43... c1=Q {[%clk 0:00:31.4]} 44. Qd8 {[%clk
0:00:34.1]} 44... Qc2 {[%clk 0:00:23.5]} 45. Qg8+ {[%clk 0:00:23.2]} 45... Kg6
{[%clk 0:00:23.5]} 46. Ra6 {[%clk 0:00:17.9]} 46... Qxf2+ {[%clk 0:00:22.3]} 47.
Kh3 {[%clk 0:00:16.3]} 47... Qxf1+ {[%clk 0:00:23]} 48. Kg4 {[%clk 0:00:14.8]}
48... Qbxa6 {[%clk 0:00:22.4]} 0-1

[Event "Early-Titled-Tuesday-Blitz-April-16-2024"]
[Site "Chess.com"]
[Date "2024.04.16"]
[Round "11"]
[White "GlavkonVVS"]
[Black "Flaccidmoves"]
[Result "0-1"]
[WhiteElo "2560"]
[BlackElo "2437"]
[TimeControl "180+1"]
[EndTime "10:12:12 PDT"]
[Termination "Flaccidmoves won on time"]

1. c4 {[%clk 0:03:00.9]} 1... e6 {[%clk 0:02:59]} 2. Nc3 {[%clk 0:03:00.8]} 2...
d5 {[%clk 0:02:59.1]} 3. d4 {[%clk 0:03:01.4]} 3... Be7 {[%clk 0:02:58.7]} 4.
Nf3 {[%clk 0:03:01.4]} 4... Nf6 {[%clk 0:02:57.9]} 5. Bg5 {[%clk 0:03:01]} 5...
O-O {[%clk 0:02:57.9]} 6. e3 {[%clk 0:03:01.2]} 6... b6 {[%clk 0:02:53.8]} 7.
Qc2 {[%clk 0:02:59.1]} 7... Bb7 {[%clk 0:02:49.3]} 8. Bxf6 {[%clk 0:02:59]} 8...
Bxf6 {[%clk 0:02:49.1]} 9. cxd5 {[%clk 0:02:59.4]} 9... exd5 {[%clk 0:02:48.7]}
10. Be2 {[%clk 0:02:57.9]} 10... c5 {[%clk 0:02:44]} 11. dxc5 {[%clk 0:02:56.7]}
11... bxc5 {[%clk 0:02:43.8]} 12. O-O {[%clk 0:02:56.7]} 12... Nc6 {[%clk
0:02:36.6]} 13. Rfd1 {[%clk 0:02:56]} 13... Nb4 {[%clk 0:02:26.1]} 14. Qd2
{[%clk 0:02:49.3]} 14... Qe7 {[%clk 0:02:13.6]} 15. a3 {[%clk 0:02:31.7]} 15...
Bxc3 {[%clk 0:02:12.7]} 16. Qxc3 {[%clk 0:02:28.1]} 16... d4 {[%clk 0:02:03.6]}
17. Nxd4 {[%clk 0:02:10.4]} 17... Nd5 {[%clk 0:01:38.3]} 18. Nf5 {[%clk
0:02:09.5]} 18... Qg5 {[%clk 0:01:38.3]} 19. Qb3 {[%clk 0:01:14.9]} 19... Nf4
{[%clk 0:01:07]} 20. Qxb7 {[%clk 0:01:09.7]} 20... Nxe2+ {[%clk 0:01:06.4]} 21.
Kf1 {[%clk 0:01:09.9]} 21... Qxf5 {[%clk 0:01:06.4]} 22. Kxe2 {[%clk 0:01:09.7]}
22... Rab8 {[%clk 0:01:06.1]} 23. Qf3 {[%clk 0:00:59]} 23... Rxb2+ {[%clk
0:01:05.5]} 24. Kf1 {[%clk 0:00:58.2]} 24... Qe6 {[%clk 0:00:52.4]} 25. Rac1
{[%clk 0:00:50.3]} 25... Qa6+ {[%clk 0:00:46.1]} 26. Kg1 {[%clk 0:00:49.8]}
26... Qxa3 {[%clk 0:00:46.6]} 27. Qd5 {[%clk 0:00:46]} 27... h6 {[%clk
0:00:36.4]} 28. Rxc5 {[%clk 0:00:32.6]} 28... Rfb8 {[%clk 0:00:26.4]} 29. Rc7
{[%clk 0:00:23.6]} 29... Rf8 {[%clk 0:00:21.8]} 30. h3 {[%clk 0:00:18.6]} 30...
a5 {[%clk 0:00:18.7]} 31. Ra7 {[%clk 0:00:17.7]} 31... Ra2 {[%clk 0:00:13.4]}
32. Qc4 {[%clk 0:00:15.9]} 32... Qb2 {[%clk 0:00:12]} 33. Qf4 {[%clk 0:00:14.8]}
33... a4 {[%clk 0:00:11.4]} 34. Rdd7 {[%clk 0:00:14.7]} 34... Qb3 {[%clk
0:00:11]} 35. g4 {[%clk 0:00:14.5]} 35... a3 {[%clk 0:00:11.1]} 36. Kg2 {[%clk
0:00:14.9]} 36... Ra1 {[%clk 0:00:11]} 37. h4 {[%clk 0:00:14.9]} 37... a2 {[%clk
0:00:11.3]} 38. Rdb7 {[%clk 0:00:14]} 38... Qd5+ {[%clk 0:00:10.2]} 39. Qf3
{[%clk 0:00:14.1]} 39... Rg1+ {[%clk 0:00:09.6]} 40. Kxg1 {[%clk 0:00:14.3]}
40... Qxf3 {[%clk 0:00:10.3]} 41. Rb2 {[%clk 0:00:13.8]} 41... Qxg4+ {[%clk
0:00:10.3]} 42. Kf1 {[%clk 0:00:13.8]} 42... Qd1+ {[%clk 0:00:10.3]} 43. Kg2
{[%clk 0:00:14.1]} 43... a1=Q {[%clk 0:00:11]} 44. Rxa1 {[%clk 0:00:13.9]} 44...
Qxa1 {[%clk 0:00:11.9]} 0-1

[Event "Early-Titled-Tuesday-Blitz-April-16-2024"]
[Site "Chess.com"]
[Date "2024.04.16"]
[Round "11"]
[White "ExchangeAB"]
[Black "Felix-Rose"]
[Result "1-0"]
[WhiteElo "2393"]
[BlackElo "2187"]
[TimeControl "180+1"]
[EndTime "10:12:12 PDT"]
[Termination "ExchangeAB won by checkmate"]

1. c4 {[%clk 0:03:00.9]} 1... e6 {[%clk 0:01:09.1]} 2. Nf3 {[%clk 0:02:58.9]}
2... d5 {[%clk 0:01:08.6]} 3. g3 {[%clk 0:02:55.2]} 3... Nf6 {[%clk 0:01:08]} 4.
Bg2 {[%clk 0:02:55.4]} 4... Be7 {[%clk 0:01:07.8]} 5. O-O {[%clk 0:02:55.5]}
5... O-O {[%clk 0:01:07.7]} 6. b3 {[%clk 0:02:51.3]} 6... b6 {[%clk 0:01:06]} 7.
Bb2 {[%clk 0:02:51.1]} 7... Bb7 {[%clk 0:01:06.1]} 8. Ne5 {[%clk 0:02:48.8]}
8... Nbd7 {[%clk 0:01:04.3]} 9. d3 {[%clk 0:02:46.9]} 9... Nxe5 {[%clk
0:01:02.4]} 10. Bxe5 {[%clk 0:02:46.7]} 10... c5 {[%clk 0:01:00.8]} 11. Nd2
{[%clk 0:02:46]} 11... Nd7 {[%clk 0:00:59.1]} 12. Bb2 {[%clk 0:02:42.6]} 12...
Bf6 {[%clk 0:00:59]} 13. Qc2 {[%clk 0:02:40.8]} 13... Rb8 {[%clk 0:00:54.3]} 14.
e4 {[%clk 0:02:35.5]} 14... Bxb2 {[%clk 0:00:51.4]} 15. Qxb2 {[%clk 0:02:35.2]}
15... d4 {[%clk 0:00:51.2]} 16. f4 {[%clk 0:02:33.8]} 16... f6 {[%clk
0:00:47.2]} 17. a3 {[%clk 0:02:32]} 17... e5 {[%clk 0:00:46.6]} 18. b4 {[%clk
0:02:31.7]} 18... Qc7 {[%clk 0:00:43.8]} 19. Bh3 {[%clk 0:02:30]} 19... Bc8
{[%clk 0:00:37.6]} 20. Bxd7 {[%clk 0:02:27.9]} 20... Bxd7 {[%clk 0:00:37.1]} 21.
f5 {[%clk 0:02:28.3]} 21... a5 {[%clk 0:00:30.5]} 22. g4 {[%clk 0:02:24.5]}
22... Qd6 {[%clk 0:00:29.8]} 23. Rfb1 {[%clk 0:02:15.7]} 23... Rfc8 {[%clk
0:00:22.4]} 24. Kf2 {[%clk 0:02:06]} 24... Kf7 {[%clk 0:00:21.5]} 25. Qc2 {[%clk
0:02:01.2]} 25... cxb4 {[%clk 0:00:19.7]} 26. axb4 {[%clk 0:01:59]} 26... axb4
{[%clk 0:00:19.9]} 27. Qb3 {[%clk 0:01:55.3]} 27... Ke7 {[%clk 0:00:19.1]} 28.
Qxb4 {[%clk 0:01:55.2]} 28... Qxb4 {[%clk 0:00:18.1]} 29. Rxb4 {[%clk
0:01:56.1]} 29... Kd6 {[%clk 0:00:18.4]} 30. Ra7 {[%clk 0:01:44.8]} 30... Kc5
{[%clk 0:00:14.8]} 31. Rb2 {[%clk 0:01:43.5]} 31... Rd8 {[%clk 0:00:13.7]} 32.
h4 {[%clk 0:01:35.2]} 32... Ra8 {[%clk 0:00:13.7]} 33. Rxa8 {[%clk 0:01:23.5]}
33... Rxa8 {[%clk 0:00:14.6]} 34. g5 {[%clk 0:01:16.8]} 34... Ra3 {[%clk
0:00:13.9]} 35. Ke2 {[%clk 0:01:15]} 35... Ba4 {[%clk 0:00:13.4]} 36. h5 {[%clk
0:01:10.2]} 36... h6 {[%clk 0:00:13.4]} 37. gxh6 {[%clk 0:01:03.2]} 37... gxh6
{[%clk 0:00:13.4]} 38. Nf1 {[%clk 0:00:55.6]} 38... Rc3 {[%clk 0:00:12.8]} 39.
Rd2 {[%clk 0:00:54.3]} 39... b5 {[%clk 0:00:12]} 40. cxb5 {[%clk 0:00:54]} 40...
Bxb5 {[%clk 0:00:12.9]} 41. Nh2 {[%clk 0:00:51]} 41... Rc1 {[%clk 0:00:12]} 42.
Ng4 {[%clk 0:00:50.9]} 42... Rh1 {[%clk 0:00:11.7]} 43. Nxf6 {[%clk 0:00:50.2]}
43... Rh2+ {[%clk 0:00:10.6]} 44. Ke1 {[%clk 0:00:49.4]} 44... Rh3 {[%clk
0:00:10.7]} 45. Ng4 {[%clk 0:00:44.1]} 45... Rxh5 {[%clk 0:00:08.5]} 46. Nxe5
{[%clk 0:00:40.2]} 46... Rh1+ {[%clk 0:00:09.4]} 47. Ke2 {[%clk 0:00:39.8]}
47... Rh2+ {[%clk 0:00:10]} 48. Kd1 {[%clk 0:00:38]} 48... Rh1+ {[%clk
0:00:09.9]} 49. Kc2 {[%clk 0:00:37.1]} 49... h5 {[%clk 0:00:10.8]} 50. Nf3
{[%clk 0:00:36.8]} 50... h4 {[%clk 0:00:10.7]} 51. e5 {[%clk 0:00:36.6]} 51...
Ba4+ {[%clk 0:00:10.8]} 52. Kb2 {[%clk 0:00:36.6]} 52... h3 {[%clk 0:00:10.9]}
53. f6 {[%clk 0:00:36.5]} 53... Bc6 {[%clk 0:00:11.1]} 54. f7 {[%clk 0:00:34.4]}
54... Bxf3 {[%clk 0:00:10.9]} 55. f8=Q+ {[%clk 0:00:34.4]} 55... Kd5 {[%clk
0:00:10.5]} 56. Qd6# {[%clk 0:00:34.4]} 1-0

[Event "Early-Titled-Tuesday-Blitz-April-16-2024"]
[Site "Chess.com"]
[Date "2024.04.16"]
[Round "11"]
[White "Mops_2004"]
[Black "vladgoncharov"]
[Result "1-0"]
[WhiteElo "2806"]
[BlackElo "2617"]
[TimeControl "180+1"]
[EndTime "10:12:13 PDT"]
[Termination "Mops_2004 won on time"]

1. g3 {[%clk 0:03:00.9]} 1... c5 {[%clk 0:02:58.1]} 2. Bg2 {[%clk 0:02:59.5]}
2... Nc6 {[%clk 0:02:58.1]} 3. c4 {[%clk 0:02:59.5]} 3... g6 {[%clk 0:02:58]} 4.
Nc3 {[%clk 0:02:59.8]} 4... Bg7 {[%clk 0:02:57.8]} 5. d3 {[%clk 0:03:00.3]} 5...
d6 {[%clk 0:02:57.7]} 6. Qd2 {[%clk 0:03:00.2]} 6... Nf6 {[%clk 0:02:47.7]} 7.
b3 {[%clk 0:02:56.9]} 7... h5 {[%clk 0:02:42.5]} 8. Nf3 {[%clk 0:02:54.8]} 8...
Bf5 {[%clk 0:02:35]} 9. Bb2 {[%clk 0:02:53.5]} 9... Qd7 {[%clk 0:02:31.8]} 10.
Nd5 {[%clk 0:02:52.8]} 10... e5 {[%clk 0:02:21.2]} 11. Nxf6+ {[%clk 0:02:20.2]}
11... Bxf6 {[%clk 0:02:19.9]} 12. Ng5 {[%clk 0:02:21.1]} 12... Qe7 {[%clk
0:02:01]} 13. Ne4 {[%clk 0:02:18.7]} 13... Bg7 {[%clk 0:01:59.3]} 14. e3 {[%clk
0:02:13.1]} 14... h4 {[%clk 0:01:56.7]} 15. Nc3 {[%clk 0:02:07.5]} 15... Qd7
{[%clk 0:01:38.8]} 16. O-O-O {[%clk 0:01:25.9]} 16... O-O-O {[%clk 0:01:37.7]}
17. f4 {[%clk 0:01:10.1]} 17... Nb4 {[%clk 0:01:19.3]} 18. Be4 {[%clk
0:01:09.3]} 18... Bg4 {[%clk 0:01:13.9]} 19. Rdf1 {[%clk 0:01:06.2]} 19... hxg3
{[%clk 0:01:13.4]} 20. hxg3 {[%clk 0:01:05.8]} 20... f5 {[%clk 0:01:06.7]} 21.
Bg2 {[%clk 0:01:05.7]} 21... exf4 {[%clk 0:01:05.4]} 22. gxf4 {[%clk 0:01:05.1]}
22... Rde8 {[%clk 0:00:55.3]} 23. a3 {[%clk 0:01:03.7]} 23... Nc6 {[%clk
0:00:54.4]} 24. Nd5 {[%clk 0:01:03.9]} 24... Rxh1 {[%clk 0:00:47.9]} 25. Rxh1
{[%clk 0:01:03.4]} 25... Qf7 {[%clk 0:00:41.4]} 26. Kb1 {[%clk 0:00:54.4]} 26...
Bh5 {[%clk 0:00:40]} 27. b4 {[%clk 0:00:51.6]} 27... Ne7 {[%clk 0:00:31.9]} 28.
bxc5 {[%clk 0:00:51.5]} 28... dxc5 {[%clk 0:00:29.7]} 29. Bxg7 {[%clk
0:00:51.6]} 29... Qxg7 {[%clk 0:00:29.1]} 30. Qa5 {[%clk 0:00:52]} 30... Nxd5
{[%clk 0:00:24.1]} 31. Bxd5 {[%clk 0:00:52.1]} 31... Qc7 {[%clk 0:00:23.4]} 32.
Qxc7+ {[%clk 0:00:36]} 32... Kxc7 {[%clk 0:00:22.9]} 33. e4 {[%clk 0:00:36.9]}
33... fxe4 {[%clk 0:00:20.1]} 34. dxe4 {[%clk 0:00:36.8]} 34... b6 {[%clk
0:00:15]} 35. Kc2 {[%clk 0:00:35.8]} 35... Rf8 {[%clk 0:00:14.2]} 36. Rh4 {[%clk
0:00:31.8]} 36... Kd6 {[%clk 0:00:13]} 37. Kd3 {[%clk 0:00:31.6]} 37... a6
{[%clk 0:00:11.4]} 38. a4 {[%clk 0:00:28.6]} 38... Ke7 {[%clk 0:00:10.5]} 39.
Ke3 {[%clk 0:00:24]} 39... Rb8 {[%clk 0:00:09.2]} 40. Rh2 {[%clk 0:00:12.7]}
40... b5 {[%clk 0:00:08.8]} 41. cxb5 {[%clk 0:00:13]} 41... axb5 {[%clk
0:00:09]} 42. Rb2 {[%clk 0:00:12.3]} 42... b4 {[%clk 0:00:02.5]} 43. a5 {[%clk
0:00:12.9]} 1-0